bitfinex/quotes_ETHUSD_20251119
["timestamp","ask_amount","ask_price","bid_price","bid_amount"]
[1763577779896,1.37270355,2890.8,2890.4,0.001]
[1763577780137,0.55861979,2890.7,2890.4,0.001]
[1763577780252,0.90699264,2890.6,2890.4,0.001]
[1763577780598,0.86166224,2890.5,2890.4,0.001]
[1763577780895,1.58980726,2890.5,2890.4,0.001]
[1763577781393,2.08828529,2890.5,2890.4,0.001]
[1763577781605,3.9247106,2890.5,2890.4,0.001]
[1763577781757,4.39042151,2890.5,2890.4,0.001]
[1763577781952,3.96782151,2890.5,2890.4,0.001]
[1763577782153,4.39042151,2890.5,2890.4,0.001]
[1763577782466,7.85003057,2890.5,2890.4,0.001]
[1763577782651,9.1675821,2890.5,2890.4,0.001]
[1763577782851,9.47372862,2890.5,2890.4,0.001]
[1763577783079,13.10872862,2890.5,2890.4,0.001]
[1763577784115,11.48503057,2890.5,2890.4,0.001]
[1763577784274,7.06123257,2890.5,2890.4,0.001]
[1763577784608,10.52084163,2890.5,2890.4,0.001]
[1763577784811,3.00363257,2890.5,2890.4,0.001]
[1763577785117,7.37650727,2890.5,2890.4,0.001]
[1763577785411,10.52084163,2890.5,2890.4,0.001]
[1763577785610,10.09824163,2890.5,2890.4,0.001]
[1763577785817,13.71702835,2890.5,2890.4,0.001]
[1763577786044,13.71702835,2890.5,2888.1,0.1867]
[1763577786045,0.405504,2889.8,2888.1,0.1867]
[1763577786315,0.91222501,2889.1,2888.2,0.4763]
[1763577786528,4.85130001,2889.3,2888.2,0.4763]
[1763577786529,0.31586224,2889.0,2888.2,0.4763]
[1763577786691,0.90699264,2888.7,2888.1,0.1867]
[1763577786886,1.1746331,2888.6,2888.1,0.1867]
[1763577787111,0.85784079,2888.6,2888.1,0.1867]
[1763577787314,0.85784079,2888.6,2888.1,0.663]
[1763577787714,0.85784079,2888.6,2888.1,0.1867]
[1763577787920,1.81921765,2889.1,2888.5,0.4547]
[1763577788087,0.3162978,2889.0,2888.2,0.4656]
[1763577788292,0.90699264,2888.8,2888.1,0.1867]
[1763577788499,1.22329044,2888.7,2888.1,0.1867]
[1763577788730,0.3162978,2888.6,2888.1,0.1867]
[1763577789023,0.19521113,2888.5,2888.1,0.1867]
[1763577789243,1.63581352,2888.9,2888.1,0.6523]
[1763577789537,1.22811005,2888.8,2887.8,0.1815]
[1763577789719,0.31588504,2888.7,2887.8,0.1815]
[1763577789924,1.04470592,2888.7,2887.8,0.1815]
[1763577790122,0.31588504,2888.6,2887.8,0.1815]
[1763577790434,5.06347534,2888.6,2887.8,0.6471]
[1763577790591,1.04470592,2888.5,2887.8,0.6471]
[1763577790796,1.10752104,2888.6,2887.9,0.4656]
[1763577791038,0.72882088,2888.7,2887.9,0.4656]
[1763577791202,7.7956153,2888.0,2887.3,0.1948]
[1763577791409,0.31578525,2888.6,2887.3,0.1948]
[1763577791410,7.6714153,2888.5,2887.3,0.1948]
[1763577791596,1.32859264,2888.6,2887.4,0.4656]
[1763577791597,1.04283251,2888.4,2887.4,0.4656]
[1763577791800,0.90699264,2888.6,2887.4,0.4656]
[1763577791801,1.63424727,2888.6,2887.4,0.4656]
[1763577792002,0.52145681,2888.5,2887.4,0.4656]
[1763577792424,0.90699264,2888.3,2887.3,0.1948]
[1763577792635,1.63424727,2888.3,2887.3,0.1948]
[1763577792827,2.59843621,2888.3,2887.3,0.6604]
[1763577793012,0.405504,2888.2,2887.3,0.6604]
[1763577793227,0.99481009,2888.1,2887.3,0.1948]
[1763577793399,0.99481009,2888.1,2887.4,0.4656]
[1763577793599,0.99481009,2888.1,2887.3,0.6604]
[1763577794112,0.99481009,2888.1,2887.4,0.4656]
[1763577794314,3.46260387,2888.0,2887.4,0.4656]
[1763577794515,0.4457414,2887.9,2887.3,0.1948]
[1763577794714,0.90699264,2887.8,2887.3,0.1948]
[1763577794901,0.4457414,2887.9,2887.3,0.6604]
[1763577795105,1.44620133,2888.1,2887.4,0.4656]
[1763577795301,0.91222501,2888.6,2887.4,0.4656]
[1763577795541,1.96875002,2889.0,2887.4,0.4656]
[1763577795542,1.05652501,2889.0,2888.0,0.4547]
[1763577795741,7.6714153,2888.8,2888.0,0.4547]
[1763577796039,1.94739813,2888.7,2888.0,0.4547]
[1763577796238,1.27675949,2888.6,2888.0,0.4547]
[1763577796539,4.68393485,2888.5,2888.0,0.4547]
[1763577796750,0.90699264,2888.5,2887.3,0.1948]
[1763577796916,0.90699264,2888.5,2887.3,0.6604]
[1763577796917,0.4246,2888.1,2887.3,0.6604]
[1763577797101,0.90699264,2888.3,2887.4,0.4656]
[1763577797302,8.58364031,2888.8,2887.4,0.4656]
[1763577797506,1.94738877,2888.7,2887.4,0.4656]
[1763577797705,0.3149066,2888.6,2887.4,0.4656]
[1763577798242,0.72548953,2888.9,2887.4,0.4656]
[1763577798538,0.31498593,2888.8,2888.5,0.6495]
[1763577798741,0.31498593,2888.9,2888.5,0.6495]
[1763577798983,0.31498593,2888.9,2888.6,0.4656]
[1763577799488,11.1322238,2889.5,2888.8,0.4547]
[1763577799650,3.06107839,2889.4,2888.5,0.1948]
[1763577799849,1.04086337,2889.3,2888.5,0.1948]
[1763577800048,0.31502899,2889.2,2888.5,0.1948]
[1763577800248,0.31502899,2889.2,2888.6,0.4656]
[1763577800450,1.04812501,2889.7,2889.1,0.6495]
[1763577800648,0.31513199,2889.6,2889.1,0.6495]
[1763577800983,1.04095729,2889.6,2889.1,1.1151]
[1763577801181,0.72598985,2889.6,2889.2,0.4656]
[1763577801404,0.1359,2889.9,2889.2,0.4656]
[1763577801844,0.90699264,2889.8,2889.2,0.4656]
[1763577802049,0.31508238,2889.7,2889.2,0.4656]
[1763577802650,0.002,2890.0,2889.6,0.4547]
[1763577802886,0.002,2890.0,2889.9,0.4547]
[1763577803383,0.002,2890.0,2889.9,0.9203]
[1763577804457,0.002,2890.0,2889.9,0.8703]
[1763577806478,0.002,2890.0,2889.6,0.4542]
[1763577806987,0.002,2890.0,2889.9,0.4989]
[1763577807553,0.002,2890.0,2889.6,0.4542]
[1763577807857,0.002,2890.0,2889.3,0.4542]
[1763577808051,0.1359,2889.9,2889.3,0.4542]
[1763577808677,0.45051411,2889.8,2889.1,0.1948]
[1763577808899,0.45051411,2889.8,2889.2,0.4542]
[1763577809388,0.45051411,2889.8,2889.7,0.4989]
[1763577809705,0.002,2890.0,2889.7,0.4989]
[1763577810226,0.002,2890.0,2889.9,0.4989]
[1763577810370,0.002,2890.0,2889.9,0.9531]
[1763577810893,0.002,2890.0,2889.1,0.3148]
[1763577810894,0.002,2890.0,2889.5,0.4542]
[1763577812304,0.002,2890.0,2889.6,0.4542]
[1763577812605,0.002,2890.0,2889.1,0.1948]
[1763577812804,0.81591262,2890.0,2889.6,0.4542]
[1763577813107,0.81591262,2890.0,2889.2,0.4542]
[1763577815803,0.76591262,2890.0,2889.2,0.4542]
[1763577816005,7.6714153,2889.7,2888.5,0.1948]
[1763577816212,7.6714153,2889.7,2889.1,0.1859]
[1763577816413,0.67413984,2889.6,2889.1,0.1859]
[1763577816621,0.67413984,2889.6,2889.1,0.6401]
[1763577816807,7.6714153,2889.7,2889.1,0.6401]
[1763577818513,0.49847803,2890.2,2889.1,0.1859]
[1763577818691,0.90699264,2890.1,2889.2,0.4789]
[1763577819617,0.002,2890.0,2889.2,0.4789]
[1763577821990,7.6714153,2889.8,2889.0,0.001]
[1763577822190,7.6714153,2889.4,2889.0,0.001]
[1763577823628,11.60129037,2889.4,2889.0,0.001]
[1763577823792,7.6714153,2889.4,2889.0,0.001]
[1763577826312,11.13234806,2889.4,2889.0,0.001]
[1763577826597,7.6714153,2889.4,2889.0,0.001]
[1763577826801,0.56258313,2889.3,2889.0,0.001]
[1763577827229,0.87825246,2889.3,2889.0,0.001]
[1763577827529,0.0803,2889.1,2889.0,0.001]
[1763577828036,0.3959501,2889.1,2889.0,0.001]
[1763577828335,0.3156501,2889.1,2889.0,0.001]
[1763577830552,0.65121248,2889.1,2889.0,0.001]
[1763577830720,1.3785035,2889.1,2889.0,0.001]
[1763577831275,3.635,2889.0,2888.8,0.001]
[1763577831418,14.31229495,2888.9,2888.5,0.001]
[1763577831619,0.98541298,2888.6,2888.5,0.001]
[1763577831860,0.31584164,2888.6,2888.5,0.001]
[1763577832160,0.72788505,2888.8,2888.5,0.9405]
[1763577832466,0.72759359,2889.1,2888.6,0.4606]
[1763577832798,0.72759359,2889.1,2888.7,0.4606]
[1763577833068,1.40819101,2889.5,2888.6,0.4789]
[1763577833069,4.1885662,2889.4,2888.6,0.4789]
[1763577833227,1.0434767,2889.3,2888.6,0.4789]
[1763577833425,0.31584015,2889.2,2888.6,0.4789]
[1763577833639,1.63462919,2889.4,2888.6,0.4789]
[1763577833640,0.31584015,2889.3,2888.6,0.4789]
[1763577833854,0.31584015,2889.3,2889.1,0.6577]
[1763577834071,0.31584015,2889.4,2889.1,0.6577]
[1763577834274,7.6714153,2889.2,2888.5,0.001]
[1763577834576,7.6714153,2889.2,2888.6,0.4789]
[1763577834775,7.6714153,2889.2,2888.6,0.46158]
[1763577834931,8.16989333,2889.6,2889.1,0.6577]
[1763577835132,1.95059919,2889.5,2888.6,0.46158]
[1763577835347,0.31586617,2889.4,2888.6,0.46158]
[1763577835648,1.04360655,2889.4,2888.6,0.46158]
[1763577835847,3.96886617,2889.3,2888.5,0.001]
[1763577836051,7.6714153,2889.0,2888.5,0.001]
[1763577836246,0.90699264,2888.9,2888.5,0.001]
[1763577836601,1.17378989,2888.8,2888.5,0.001]
[1763577836769,0.85784079,2888.8,2888.5,0.001]
[1763577837268,0.31585222,2888.7,2888.5,0.001]
[1763577839594,0.72775353,2888.8,2888.5,0.001]
[1763577839782,1.63474617,2888.9,2888.5,0.001]
[1763577839983,1.24642452,2888.8,2888.5,0.001]
[1763577840184,0.93061615,2888.8,2888.5,0.001]
[1763577840366,0.90699264,2888.9,2888.5,0.4799]
[1763577840564,1.63443407,2888.9,2888.5,0.001]
[1763577840764,0.31574078,2888.8,2888.5,0.001]
[1763577840973,0.31573661,2888.8,2888.5,0.001]
[1763577841201,0.31573405,2888.8,2888.5,0.001]
[1763577841373,0.21117681,2888.7,2888.5,0.001]
[1763577841569,0.52691086,2888.7,2888.5,0.001]
[1763577841971,0.21117681,2888.7,2888.5,0.001]
[1763577842205,0.0803,2888.6,2888.5,0.001]
[1763577842508,13.09227325,2888.6,2888.5,0.001]
[1763577842704,10.1668279,2888.6,2888.5,0.001]
[1763577842883,10.5723319,2888.6,2888.5,0.001]
[1763577843079,9.7018279,2888.6,2888.5,0.001]
[1763577843297,14.03421655,2888.6,2888.5,0.001]
[1763577843603,15.44216851,2888.6,2888.5,0.001]
[1763577843779,4.058504,2888.4,2888.2,0.001]
[1763577843981,2.85611687,2888.3,2888.2,0.001]
[1763577844192,1.12341996,2888.3,2888.2,0.001]
[1763577844382,0.86086531,2888.3,2888.2,0.001]
[1763577844581,0.39586531,2888.3,2888.2,0.001]
[1763577844817,0.31556531,2888.3,2888.2,0.4616]
[1763577845116,0.1616,2888.9,2888.2,0.9405]
[1763577845311,0.90699264,2888.7,2888.2,0.4616]
[1763577845513,0.31559267,2888.6,2888.2,0.001]
[1763577846010,0.78449267,2888.7,2888.2,0.001]
[1763577846311,1.06200162,2888.6,2888.2,0.001]
[1763577846611,0.31559267,2888.5,2888.2,0.001]
[1763577846916,1.04243233,2888.5,2888.2,0.001]
[1763577847119,0.31559267,2888.4,2888.2,0.001]
[1763577847319,0.4623,2888.3,2888.2,0.001]
[1763577847621,0.69364351,2888.3,2888.2,0.001]
[1763577847805,0.72668339,2888.4,2888.2,0.001]
[1763577847980,0.72668339,2888.5,2888.2,0.001]
[1763577848182,0.31537735,2888.4,2888.2,0.001]
[1763577848414,0.31537166,2888.4,2888.2,0.001]
[1763577848612,0.49847803,2888.7,2888.3,0.972]
[1763577848613,1.04205505,2888.5,2888.3,0.972]
[1763577848784,0.72668339,2888.6,2888.3,0.972]
[1763577849129,0.31539133,2888.5,2888.3,0.4734]
[1763577849313,0.31539133,2888.6,2888.3,0.972]
[1763577849730,0.31539133,2888.6,2888.5,0.4734]
[1763577849933,0.31539133,2888.7,2888.5,0.4734]
[1763577850118,0.31539133,2888.8,2888.6,0.4734]
[1763577850426,0.31539133,2888.9,2888.2,0.4996]
[1763577850619,1.04207472,2888.9,2888.2,0.4996]
[1763577850926,0.31539133,2888.8,2888.2,0.4996]
[1763577851127,0.94732486,2888.8,2888.2,0.4996]
[1763577851331,0.002,2889.1,2888.7,0.4734]
[1763577851539,0.002,2889.1,2889.0,0.4734]
[1763577852101,0.002,2889.1,2889.0,0.972]
[1763577852506,0.002,2889.1,2889.0,0.4734]
[1763577853346,0.002,2889.1,2889.0,0.972]
[1763577854151,0.002,2889.4,2889.0,0.972]
[1763577854351,0.002,2889.4,2889.3,0.6657]
[1763577854802,0.002,2889.4,2889.3,1.1643]
[1763577855009,0.002,2889.4,2889.3,0.6657]
[1763577855550,0.002,2889.4,2889.3,1.1643]
[1763577856060,0.002,2889.4,2889.1,0.1923]
[1763577856408,0.002,2889.4,2889.1,0.6909]
[1763577857046,0.002,2889.4,2889.1,0.1923]
[1763577857208,0.002,2889.4,2888.7,0.4986]
[1763577857605,0.002,2889.4,2889.3,0.6657]
[1763577858030,0.002,2889.4,2889.3,1.1643]
[1763577860052,0.002,2889.7,2889.3,1.1643]
[1763577860224,0.002,2889.7,2889.6,0.4734]
[1763577860578,0.002,2889.7,2889.6,0.972]
[1763577861671,0.002,2890.0,2889.6,0.972]
[1763577861806,0.002,2890.0,2889.9,0.4734]
[1763577862013,0.002,2890.0,2889.9,0.972]
[1763577862763,0.002,2890.0,2889.9,0.4734]
[1763577862944,0.002,2890.0,2889.9,0.972]
[1763577864434,0.002,2890.3,2890.0,0.405504]
[1763577864645,0.002,2890.3,2890.2,0.6657]
[1763577865154,0.002,2890.3,2890.2,1.2618]
[1763577865356,0.002,2890.3,2890.2,1.1418]
[1763577866056,0.002,2890.3,2890.2,1.547304]
[1763577866350,0.002,2890.3,2890.2,1.1418]
[1763577868459,0.002,2890.3,2890.2,1.2618]
[1763577868855,0.002,2890.3,2890.2,1.1418]
[1763577869416,0.002,2890.3,2890.2,0.6657]
[1763577869616,0.002,2890.3,2890.2,1.1418]
[1763577870218,0.002,2890.3,2890.2,0.6657]
[1763577870712,0.002,2890.3,2890.2,1.1418]
[1763577871351,0.002,2890.3,2889.8,0.4761]
[1763577871548,0.002,2890.3,2889.3,0.1923]
[1763577871549,0.002,2890.3,2889.6,0.5961]
[1763577871847,0.002,2890.3,2889.6,0.12]
[1763577872048,0.002,2890.3,2889.6,0.5961]
[1763577872637,0.4769,2890.2,2889.3,0.1923]
[1763577872837,0.002,2890.3,2889.4,0.4761]
[1763577873037,0.82234441,2890.3,2889.4,0.4761]
[1763577874015,0.82234441,2890.3,2889.3,0.1923]
[1763577874016,0.4769,2890.2,2889.3,0.1923]
[1763577874252,0.4769,2890.2,2889.1,0.12]
[1763577874422,1.38389264,2890.2,2889.1,0.12]
[1763577874930,1.38389264,2890.2,2888.8,0.195]
[1763577874931,0.90699264,2890.2,2888.8,0.195]
[1763577875120,8.60694812,2890.0,2888.6,0.4761]
[1763577875442,0.90699264,2889.7,2888.4,0.12]
[1763577875641,0.90699264,2889.7,2888.3,0.4761]
[1763577875961,0.4769,2889.6,2888.3,0.5961]
[1763577876546,0.4769,2889.6,2888.3,0.12]
[1763577876854,0.18408218,2889.5,2889.0,0.001]
[1763577877766,1.31249664,2889.7,2889.0,0.001]
[1763577878049,0.4575,2889.4,2889.0,0.001]
[1763577878847,0.0916,2889.1,2889.0,0.001]
[1763577879358,0.5454,2889.1,2889.0,0.001]
[1763577879561,0.0916,2889.1,2889.0,0.001]
[1763577880059,0.53756655,2889.1,2889.0,0.001]
[1763577880271,0.863004,2889.7,2889.0,0.001]
[1763577880434,1.22100152,2889.6,2889.0,0.001]
[1763577880757,0.31400888,2889.5,2889.0,0.001]
[1763577881064,0.90699264,2889.6,2889.0,0.001]
[1763577881446,1.36449264,2889.7,2889.0,0.001]
[1763577881651,0.49608811,2889.7,2889.1,0.1885]
[1763577881869,0.1359,2889.9,2889.1,0.1885]
[1763577881870,0.86005663,2889.9,2889.1,0.1885]
[1763577882191,3.59624001,2889.9,2889.1,0.1885]
[1763577882494,2.40306432,2889.8,2889.0,0.001]
[1763577882662,1.36449264,2889.8,2889.0,0.001]
[1763577882845,0.54176618,2889.7,2889.0,0.001]
[1763577883047,0.0916,2889.1,2889.0,0.001]
[1763577884188,0.5454,2889.1,2889.0,0.001]
[1763577885094,0.0916,2889.1,2889.0,0.001]
[1763577885388,0.5454,2889.1,2889.0,0.001]
[1763577885745,5.77611135,2889.1,2889.0,0.001]
[1763577885953,7.71243369,2889.1,2889.0,0.001]
[1763577886883,11.36543369,2889.1,2889.0,0.001]
[1763577889184,13.16694076,2888.9,2888.8,0.001]
[1763577889402,14.82800601,2888.9,2888.8,0.001]
[1763577889578,15.82727219,2888.9,2888.8,0.001]
[1763577890101,16.2929831,2888.9,2888.8,0.001]
[1763577890271,19.75450824,2888.9,2888.8,0.001]
[1763577890460,19.75450824,2888.9,2886.2,0.1885]
[1763577890461,0.90699264,2888.0,2886.2,0.1885]
[1763577890664,0.4583,2888.2,2886.3,0.03464643]
[1763577890665,0.45599926,2887.9,2886.3,0.03464643]
[1763577890866,0.1443,2887.8,2886.4,0.468]
[1763577892305,5.42242583,2888.3,2887.7,0.1885]
[1763577892306,0.1443,2888.1,2887.7,0.1885]
[1763577892670,0.1443,2888.4,2888.0,0.4515]
[1763577893292,0.1443,2888.4,2887.8,0.468]
[1763577893691,0.1443,2888.4,2887.7,0.1885]
[1763577894407,0.59562023,2888.4,2887.7,0.1885]
[1763577894771,0.1616,2888.9,2887.8,0.468]
[1763577894986,0.405504,2888.8,2887.8,0.468]
[1763577895508,1.31249664,2888.8,2887.8,0.468]
[1763577895711,0.405504,2888.8,2887.8,0.468]
[1763577896079,0.405504,2888.8,2888.0,0.001]
[1763577896279,0.49356579,2888.7,2888.0,0.001]
[1763577896480,4.53215393,2888.9,2888.0,0.001]
[1763577896481,0.1636,2888.9,2888.0,0.469]
[1763577896680,0.90699264,2888.8,2888.0,0.469]
[1763577897786,0.4575,2888.7,2888.0,0.001]
[1763577898215,9.56536595,2888.8,2888.0,0.001]
[1763577898617,12.57008823,2888.8,2888.0,0.001]
[1763577899426,9.10843676,2888.8,2888.0,0.469]
[1763577900086,0.1636,2888.9,2888.0,0.469]
[1763577900287,1.07059264,2888.9,2888.0,0.469]
[1763577900544,0.1636,2888.9,2888.0,0.469]
[1763577901043,0.002,2888.9,2888.0,0.469]
[1763577901822,0.1616,2888.8,2888.0,0.469]
[1763577903088,0.31425671,2888.8,2888.0,0.469]
[1763577903419,0.1616,2888.7,2888.0,0.001]
[1763577903923,0.405504,2888.6,2888.0,0.001]
[1763577904097,0.71976071,2888.6,2888.0,0.001]
[1763577904315,0.20618066,2888.5,2888.0,0.001]
[1763577904645,0.52043737,2888.5,2888.1,0.1885]
[1763577904808,0.72294591,2888.7,2888.4,0.4515]
[1763577905002,0.1636,2888.9,2888.4,0.4515]
[1763577905301,0.6211,2888.9,2888.1,0.6565]
[1763577905508,7.67966452,2888.7,2888.0,0.001]
[1763577905737,1.03785104,2888.6,2888.1,0.1885]
[1763577906040,0.31518809,2888.5,2888.1,0.1885]
[1763577906243,0.31518809,2888.5,2888.0,0.001]
[1763577906741,0.31518809,2888.5,2888.1,0.1885]
[1763577906941,0.31518809,2888.5,2888.2,0.468]
[1763577907314,0.31518809,2888.5,2888.1,0.1885]
[1763577907640,0.0916,2888.2,2888.0,0.001]
[1763577907841,0.0009,2888.1,2888.0,0.001]
[1763577908058,0.79758809,2888.1,2888.0,0.001]
[1763577908230,0.79758809,2888.1,2887.7,0.001]
[1763577908231,3.653,2887.9,2887.7,0.001]
[1763577908541,10.21490998,2887.8,2887.7,0.001]
[1763577908748,9.78461086,2887.8,2887.7,0.001]
[1763577909548,10.69320998,2887.8,2887.7,0.001]
[1763577909760,1.038134,2887.8,2887.7,0.001]
[1763577909921,0.31518809,2887.8,2887.7,0.001]
[1763577910253,1.31249664,2887.7,2886.3,0.4746]
[1763577910472,8.59407383,2887.4,2886.3,0.4746]
[1763577910746,1.038134,2887.3,2886.3,0.4746]
[1763577910947,1.038134,2887.3,2886.0,1.4746]
[1763577910948,0.405504,2887.1,2886.0,1.4746]
[1763577911153,1.443638,2887.1,2886.0,1.4746]
[1763577911319,0.31518809,2887.0,2886.1,0.4746]
[1763577911644,0.454504,2886.9,2886.1,0.4746]
[1763577911843,0.049,2886.9,2886.1,0.4746]
[1763577912045,0.56360075,2886.9,2886.1,0.4746]
[1763577912235,0.51460075,2886.9,2886.1,0.4746]
[1763577913352,0.405504,2886.8,2886.0,1.0]
[1763577913651,0.31518809,2886.8,2886.0,1.0]
[1763577913820,0.51460075,2886.9,2886.1,0.4746]
[1763577914438,0.72294591,2887.0,2886.1,0.4746]
[1763577914631,0.31519847,2886.9,2886.1,0.4746]
[1763577915062,0.31519847,2887.0,2886.1,0.4746]
[1763577915372,8.99216116,2886.9,2886.0,1.001]
[1763577915526,2.01703034,2886.8,2886.0,1.001]
[1763577915721,0.97888596,2886.8,2886.1,0.4746]
[1763577916060,0.72494841,2886.9,2886.7,0.4582]
[1763577916263,0.90960931,2887.6,2886.1,0.5946]
[1763577916446,0.90960931,2887.6,2886.0,1.001]
[1763577916447,7.67966452,2887.2,2886.2,0.4746]
[1763577916648,1.03942275,2887.1,2886.2,0.4746]
[1763577916853,0.31457485,2887.0,2886.2,0.4746]
[1763577917362,0.31457485,2887.0,2886.9,0.4582]
[1763577917521,0.7248479,2887.2,2886.9,0.4582]
[1763577917728,0.7248479,2887.3,2886.9,0.4582]
[1763577917924,1.68084054,2887.5,2886.9,0.9328]
[1763577918126,0.31461259,2887.4,2886.9,0.9328]
[1763577918370,1.03946049,2887.4,2886.6,0.4746]
[1763577918532,0.31461259,2887.3,2886.6,0.4746]
[1763577919149,0.7248479,2887.4,2886.6,0.4746]
[1763577919373,0.3146301,2887.3,2886.6,0.4746]
[1763577919558,1.039478,2887.5,2886.6,0.4746]
[1763577919758,1.37372179,2887.4,2886.6,0.4746]
[1763577919974,1.05909169,2887.4,2886.6,0.4746]
[1763577920170,0.31464739,2887.3,2886.6,0.4746]
[1763577920495,0.049,2887.7,2886.6,0.4746]
[1763577920780,0.36360305,2887.7,2886.6,0.4746]
[1763577921100,1.09691198,2887.7,2886.6,0.4746]
[1763577921296,0.31463945,2887.6,2886.6,0.4746]
[1763577921582,1.03955727,2887.6,2886.6,0.4746]
[1763577921746,0.72491782,2887.8,2886.6,0.4746]
[1763577921949,0.31473002,2887.7,2886.7,0.12]
[1763577922182,1.03964784,2887.7,2886.7,0.12]
[1763577922387,0.31473002,2887.6,2886.8,0.4746]
[1763577922590,0.31473002,2887.6,2886.5,0.4746]
[1763577922591,3.46320346,2887.5,2886.5,0.4746]
[1763577922792,0.405504,2887.3,2886.5,0.4746]
[1763577923152,0.72030606,2887.3,2886.5,0.4746]
[1763577923350,0.4815,2887.4,2886.5,0.4746]
[1763577923683,1.46893104,2887.3,2886.0,1.121]
[1763577923878,1.04007275,2887.2,2886.4,0.4746]
[1763577924187,0.50414926,2887.3,2886.4,0.4746]
[1763577924374,0.24299223,2887.6,2887.2,0.6511]
[1763577924579,0.31477143,2887.6,2887.2,0.6511]
[1763577924884,0.31477143,2887.7,2887.3,0.4746]
[1763577925092,0.91160931,2888.1,2887.5,0.4582]
[1763577925093,0.31486995,2888.0,2887.5,0.4582]
[1763577925252,0.002,2888.1,2888.0,0.4844]
[1763577925664,0.002,2888.1,2888.0,0.965]
[1763577925863,0.002,2888.4,2888.0,0.965]
[1763577926083,0.002,2888.4,2888.3,0.6792]
[1763577926458,0.002,2888.4,2888.3,1.1598]
[1763577929264,0.002,2888.4,2888.3,0.6792]
[1763577929468,0.002,2888.4,2888.1,0.1948]
[1763577929662,0.002,2888.4,2887.6,0.1948]
[1763577929864,0.76816645,2888.3,2887.6,0.1948]
[1763577930293,0.76816645,2888.3,2887.6,0.6754]
[1763577931313,0.2237,2887.7,2887.0,0.1948]
[1763577931591,0.08,2887.7,2887.1,0.1948]
[1763577932392,0.6135,2888.2,2887.2,0.4806]
[1763577932562,0.5008311,2888.1,2887.2,0.4806]
[1763577933569,0.90699264,2888.0,2887.2,0.4806]
[1763577933871,0.6697766,2888.1,2887.2,0.4806]
[1763577934067,104.34031,2886.3,2886.2,1.08603832]
[1763577934269,104.34031,2886.3,2886.2,0.405504]
[1763577934481,104.34031,2886.3,2886.2,1.36805366]
[1763577934989,99.32131,2886.3,2886.2,1.36805366]
[1763577936170,99.32131,2886.3,2886.2,1.84865366]
[1763577937110,99.32131,2886.3,2886.2,1.72865366]
[1763577937297,99.32131,2886.3,2886.2,1.84865366]
[1763577939510,99.32131,2886.3,2886.2,1.72865366]
[1763577939711,99.32131,2886.3,2886.2,1.84865366]
[1763577942316,82.53692487,2886.3,2886.2,2.7556463]
[1763577942684,82.53692487,2886.3,2886.2,6.22040965]
[1763577943104,75.31587189,2886.3,2886.2,6.22040965]
[1763577943314,75.31587189,2886.3,2886.2,2.7556463]
[1763577943821,75.31587189,2886.3,2886.2,6.22040965]
[1763577944316,68.09481891,2886.3,2886.2,2.7556463]
[1763577945649,68.09481891,2886.3,2886.2,2.6356463]
[1763577945829,68.09481891,2886.3,2886.2,2.2301423]
[1763577946122,68.09481891,2886.3,2886.2,1.44314966]
[1763577946327,68.09481891,2886.3,2886.2,1.84865366]
[1763577946620,68.09481891,2886.3,2886.2,1.44314966]
[1763577946807,68.09481891,2886.3,2886.2,1.84865366]
[1763577948109,68.09481891,2886.3,2886.2,2.19595366]
[1763577950422,68.09481891,2886.3,2886.2,2.07595366]
[1763577951330,68.09481891,2886.3,2886.2,1.32314966]
[1763577951532,68.09481891,2886.3,2886.2,1.44314966]
[1763577952421,68.09481891,2886.3,2886.2,1.32314966]
[1763577953057,68.09681891,2886.3,2886.2,1.36805366]
[1763577953362,68.09681891,2886.3,2886.1,0.001]
[1763577953529,68.09681891,2886.3,2886.2,0.12]
[1763577954723,68.09681891,2886.3,2886.2,0.525504]
[1763577954924,68.09681891,2886.3,2886.2,1.006104]
[1763577956067,68.09681891,2886.3,2886.2,1.502704]
[1763577956356,68.09681891,2886.3,2886.2,1.92752562]
[1763577956923,68.09501891,2886.3,2886.2,1.92752562]
[1763577957426,68.09501891,2886.3,2886.2,2.27482562]
[1763577957961,68.09501891,2886.3,2886.2,3.18181826]
[1763577960028,68.09501891,2886.3,2886.2,3.06181826]
[1763577960233,68.09501891,2886.3,2886.2,3.18181826]
[1763577960627,68.09501891,2886.3,2886.2,3.06181826]
[1763577960833,68.09501891,2886.3,2886.2,3.18181826]
[1763577961934,68.09501891,2886.3,2886.2,3.06181826]
[1763577962132,68.09501891,2886.3,2886.2,3.18181826]
[1763577964782,68.09501891,2886.3,2886.2,3.06181826]
[1763577964932,68.09501891,2886.3,2886.2,2.71451826]
[1763577965248,68.09501891,2886.3,2886.2,0.12]
[1763577965444,68.09501891,2886.3,2886.2,0.6006]
[1763577965650,68.09501891,2886.3,2886.1,0.001]
[1763577965963,0.7358,2886.2,2886.1,0.001]
[1763577973407,0.2495,2886.2,2886.1,0.121]
[1763577973569,68.09501891,2886.3,2886.1,0.121]
[1763577974112,4.37802876,2886.2,2886.0,1.001]
[1763577974269,0.7595,2886.1,2886.0,1.001]
[1763577975898,0.7595,2886.1,2886.0,1.121]
[1763577976115,68.09501891,2886.3,2886.0,1.121]
[1763577977301,0.4569,2886.1,2886.0,1.121]
[1763577977813,0.9183,2886.1,2886.0,1.121]
[1763577978225,0.9183,2886.1,2886.0,1.001]
[1763577978391,0.9183,2886.1,2886.0,1.121]
[1763577978593,0.4569,2886.1,2886.0,1.121]
[1763577978897,0.9183,2886.1,2886.0,1.121]
[1763577979912,68.09501891,2886.3,2886.0,1.121]
[1763577980420,0.4614,2886.2,2886.0,1.001]